[Event "105th British-ch 2018"]
[Site "Hull"]
[Date "2018.08.04"]
[Round "8"]
[White "Rudd, Jack"]
[Black "Miller, Dominic"]
[Result "1-0"]
[ECO "D98"]
[WhiteElo "2244"]
[BlackElo "2017"]
[Annotator "NA"]
[PlyCount "65"]
[EventDate "2018.07.28"]
[EventType "swiss"]
[EventCountry "GBR"]
[SourceTitle "playchess.com"]
[Source "ChessBase"]
[SourceQuality "1"]
[TimeControl "40/5400+30:1800+30"]

1. d4 {[%emt 0:00:00]} Nf6 {[%emt 0:00:00]} 2. c4 {[%emt 0:00:00]} g6 {[%emt 0:00:00]} 3. Nc3 {[%emt 0:00:00]} d5 {[%emt 0:00:00]} 4. Nf3 {[%emt 0:00:00]} Bg7 {[%emt 0:00:00]} 5. Qb3 {[%emt 0:00:00]} dxc4 {[%emt 0:00:26]} 6. Qxc4 {[%emt 0:00:00]} O-O {[%emt 0:00:08]} 7. e4 {[%emt 0:00:00]} Bg4 {[%emt 0:05:20]} 8. Be3 {[%emt 0:00:51]} Nc6 {[%emt 0:03:59]} 9. d5 {[%emt 0:00:34]} Na5 {[%emt 0:00:26]} 10. Qb4 {[%emt 0:00:40]} c6 {[%emt 0:06:35]} 11. e5 {[%emt 0:00:37]} Bxf3 {[%emt 0:01:36]} 12. exf6 {[%emt 0:00:13]} Bxf6 {[%emt 0:00:03]} 13. gxf3 {[%emt 0:00:08]} cxd5 {[%emt 0:00:17]} 14. Rd1 {[%emt 0:00:48]} e6 {[%emt 0:03:33]} 15. Bc5 {[%emt 0:01:04]} Re8 {[%emt 0:01:10]} 16. Bb5 {[%emt 0:00:10]} Nc6 {[%emt 0:00:12]} 17. Bxc6 {[%emt 0:00:09]} bxc6 {[%emt 0:00:03]} 18. Ne4 {[%emt 0:01:01]} Bg7 {[%emt 0:04:21]} 19. b3 {[%emt 0:01:32]} Qh4 {[%emt 0:05:52]} 20. Ng3 {[%emt 0:01:29]} Qf6 {[%emt 0:00:59]} 21. f4 {[%emt 0:01:22]} Bh6 {[%emt 0:31:57]} 22. Bd6 {[%emt 0:01:26]} e5 {[%emt 0:01:41]} 23. fxe5 {[%emt 0:00:10]} Bf4 {[%emt 0:01:10]} 24. O-O {[%emt 0:00:14]} Bxe5 {[%emt 0:00:06]} 25. Bxe5 {[%emt 0:00:05]} Rxe5 {[%emt 0:00:15]} 26. Qd4 {[%emt 0:00:34]} Qe7 {[%emt 0:02:04]} 27. Qc3 {[%emt 0:00:24]} Re6 {[%emt 0:09:04]} 28. Rfe1 {[%emt 0:03:31]} Re8 {[%emt 0:00:04]} 29. Rxe6 {[%emt 0:00:07]} Qxe6 {[%emt 0:00:04]} 30. Rc1 {[%emt 0:00:11]} Qc8 {[%emt 0:02:16]} 31. Re1 {[%emt 0:01:09]} h5 {[%emt 0:00:07]} 32. Rxe8+ {[%emt 0:00:59]} Qxe8 {[%emt 0:00:05]} 33. Qe3 {[%emt 0:00:23]} 1-0

[Event "105th British-ch 2018"]
[Site "Hull"]
[Date "2018.08.04"]
[Round "8"]
[White "Moore, Graham J"]
[Black "Trent, Lawrence"]
[Result "0-1"]
[ECO "A41"]
[WhiteElo "2218"]
[BlackElo "2406"]
[Annotator "NA"]
[PlyCount "42"]
[EventDate "2018.07.28"]
[EventType "swiss"]
[EventCountry "GBR"]
[SourceTitle "playchess.com"]
[Source "ChessBase"]
[SourceQuality "1"]
[TimeControl "40/5400+30:1800+30"]

1. Nf3 {[%emt 0:00:00]} Nc6 {[%emt 0:00:00]} 2. d4 {[%emt 0:00:17]} d6 {[%emt 0:00:00]} 3. Bf4 {[%emt 0:07:00]} Nf6 {[%emt 0:00:20]} 4. e3 {[%emt 0:00:33]} Nh5 {[%emt 0:03:58]} 5. c3 {[%emt 0:01:24]} g6 {[%emt 0:03:55]} 6. Nbd2 {[%emt 0:04:13]} Bg7 {[%emt 0:00:17]} 7. Bd3 {[%emt 0:01:05]} Nxf4 {[%emt 0:03:59]} 8. exf4 {[%emt 0:00:24]} e5 {[%emt 0:00:18]} 9. O-O {[%emt 0:09:12]} O-O {[%emt 0:02:55]} 10. d5 {[%emt 0:11:18]} Ne7 {[%emt 0:00:01]} 11. Qb3 {[%emt 0:04:28]} exf4 {[%emt 0:01:51]} 12. a4 {[%emt 0:00:03]} c6 {[%emt 0:01:19]} 13. dxc6 {[%emt 0:03:24]} bxc6 {[%emt 0:00:58]} 14. a5 {[%emt 0:00:35]} Qc7 {[%emt 0:02:18]} 15. Rfe1 {[%emt 0:01:28]} Bf5 {[%emt 0:05:09]} 16. Ba6 {[%emt 0:05:33]} Rab8 {[%emt 0:00:59]} 17. Qa3 {[%emt 0:00:25]} c5 {[%emt 0:00:49]} 18. Rac1 {[%emt 0:05:00]} Rfe8 {[%emt 0:07:39]} 19. Nh4 {[%emt 0:14:26]} Bd7 {[%emt 0:01:23]} 20. g3 {[%emt 0:03:35]} Bc6 {[%emt 0:08:30]} 21. Ng2 {[%emt 0:01:21]} Bxg2 {[%emt 0:00:15]} 0-1

[Event "105th British-ch 2018"]
[Site "Hull"]
[Date "2018.08.04"]
[Round "8"]
[White "Kalaiyalahan, Akshaya"]
[Black "Iyengar, Ilya"]
[Result "1-0"]
[ECO "E63"]
[WhiteElo "2138"]
[BlackElo "2017"]
[Annotator "NA"]
[PlyCount "111"]
[EventDate "2018.07.28"]
[EventType "swiss"]
[EventCountry "GBR"]
[SourceTitle "playchess.com"]
[Source "ChessBase"]
[SourceQuality "1"]
[TimeControl "40/5400+30:1800+30"]

1. d4 {[%emt 0:00:00]} Nf6 {[%emt 0:00:00]} 2. c4 {[%emt 0:00:00]} g6 {[%emt 0:00:00]} 3. Nf3 {[%emt 0:00:00]} Bg7 {[%emt 0:00:10]} 4. g3 {[%emt 0:00:13]} O-O {[%emt 0:00:19]} 5. Bg2 {[%emt 0:00:19]} d6 {[%emt 0:00:14]} 6. O-O {[%emt 0:00:26]} Nc6 {[%emt 0:00:15]} 7. Nc3 {[%emt 0:00:36]} a6 {[%emt 0:00:13]} 8. Qc2 {[%emt 0:00:44]} Rb8 {[%emt 0:04:25]} 9. Rd1 {[%emt 0:01:53]} Bd7 {[%emt 0:01:28]} 10. e4 {[%emt 0:02:59]} Qc8 {[%emt 0:02:13]} 11. Ne2 {[%emt 0:15:44]} Re8 {[%emt 0:40:07]} 12. a3 {[%emt 0:05:08]} e5 {[%emt 0:00:59]} 13. d5 {[%emt 0:01:14]} Ne7 {[%emt 0:00:17]} 14. b4 {[%emt 0:10:08]} Nh5 {[%emt 0:02:03]} 15. Bb2 {[%emt 0:03:21]} f5 {[%emt 0:07:22]} 16. Nd2 {[%emt 0:04:57]} Bh6 {[%emt 0:03:40]} 17. c5 {[%emt 0:05:44]} f4 {[%emt 0:01:23]} 18. Nc4 {[%emt 0:03:39]} Rf8 {[%emt 0:12:35]} 19. Qd3 {[%emt 0:06:56]} Bb5 {[%emt 0:08:40]} 20. f3 {[%emt 0:11:02]} fxg3 {[%emt 0:00:38]} 21. hxg3 {[%emt 0:00:07]} Qd8 {[%emt 0:01:16]} 22. Bc1 {[%emt 0:01:23]} Bxc1 {[%emt 0:00:29]} 23. Raxc1 {[%emt 0:00:47]} g5 {[%emt 0:04:22]} 24. Qe3 {[%emt 0:00:57]} Ng6 {[%emt 0:00:31]} 25. Rd2 {[%emt 0:05:53]} Ng7 {[%emt 0:02:31]} 26. cxd6 {[%emt 0:03:56]} cxd6 {[%emt 0:00:08]} 27. Qb6 {[%emt 0:01:29]} Rf6 {[%emt 0:06:12]} 28. Qxd8+ {[%emt 0:01:30]} Rxd8 {[%emt 0:00:05]} 29. Nb6 {[%emt 0:01:33]} Rf7 {[%emt 0:00:17]} 30. a4 {[%emt 0:00:35]} Be8 {[%emt 0:00:18]} 31. Rdc2 {[%emt 0:01:32]} h5 {[%emt 0:00:32]} 32. Rc7 {[%emt 0:00:53]} h4 {[%emt 0:00:58]} 33. Rxf7 {[%emt 0:00:21]} Bxf7 {[%emt 0:00:14]} 34. Bh3 {[%emt 0:03:15]} hxg3 {[%emt 0:00:37]} 35. Nxg3 {[%emt 0:00:04]} Nh4 {[%emt 0:00:53]} 36. Rc3 {[%emt 0:00:55]} Nh5 {[%emt 0:00:23]} 37. Kf2 {[%emt 0:02:08]} Nf4 {[%emt 0:01:03]} 38. Bc8 {[%emt 0:00:35]} Be8 {[%emt 0:00:34]} 39. Ke3 {[%emt 0:03:06]} Nh5 {[%emt 0:00:28]} 40. Ne2 {[%emt 0:01:32]} Ng2+ {[%emt 0:00:33]} 41. Kd2 {[%emt 0:03:03]} Nf6 {[%emt 0:14:42]} 42. Ng3 {[%emt 0:03:24]} Nh4 {[%emt 0:01:10]} 43. a5 {[%emt 0:01:20]} Nh5 {[%emt 0:01:40]} 44. Nxh5 {[%emt 0:10:09]} Bxh5 {[%emt 0:01:14]} 45. Bxb7 {[%emt 0:01:45]} Nxf3+ {[%emt 0:04:38]} 46. Ke3 {[%emt 0:06:55]} g4 {[%emt 0:04:26]} 47. Bxa6 {[%emt 0:00:04]} g3 {[%emt 0:05:07]} 48. Bf1 {[%emt 0:00:10]} Nd4 {[%emt 0:00:50]} 49. a6 {[%emt 0:01:29]} Rf8 {[%emt 0:00:29]} 50. Rc8 {[%emt 0:01:14]} Be8 {[%emt 0:00:45]} 51. Rxe8 {[%emt 0:01:25]} Rxe8 {[%emt 0:00:05]} 52. a7 {[%emt 0:00:20]} Nc2+ {[%emt 0:00:34]} 53. Kd2 {[%emt 0:00:40]} Nxb4 {[%emt 0:00:46]} 54. a8=Q {[%emt 0:00:10]} Rxa8 {[%emt 0:00:03]} 55. Nxa8 {[%emt 0:00:04]} Na6 {[%emt 0:01:01]} 56. Ke3 {[%emt 0:00:34]} 1-0

[Event "105th British-ch 2018"]
[Site "Hull"]
[Date "2018.08.04"]
[Round "8"]
[White "Longson, Sarah N"]
[Black "Zakarian, David"]
[Result "0-1"]
[ECO "B30"]
[WhiteElo "2123"]
[BlackElo "2354"]
[Annotator "NA"]
[PlyCount "66"]
[EventDate "2018.07.28"]
[EventType "swiss"]
[EventCountry "GBR"]
[SourceTitle "playchess.com"]
[Source "ChessBase"]
[SourceQuality "1"]
[TimeControl "40/5400+30:1800+30"]

1. e4 {[%emt 0:00:00]} c5 {[%emt 0:00:00]} 2. Nf3 {[%emt 0:00:00]} Nc6 {[%emt 0:00:00]} 3. Bb5 {[%emt 0:00:00]} e6 {[%emt 0:00:09]} 4. O-O {[%emt 0:05:25]} Nge7 {[%emt 0:00:18]} 5. Re1 {[%emt 0:02:21]} a6 {[%emt 0:00:50]} 6. Bf1 {[%emt 0:01:42]} d5 {[%emt 0:00:18]} 7. exd5 {[%emt 0:00:18]} Nxd5 {[%emt 0:00:06]} 8. d4 {[%emt 0:07:26]} Be7 {[%emt 0:10:58]} 9. c3 {[%emt 0:11:18]} O-O {[%emt 0:00:16]} 10. dxc5 {[%emt 0:02:05]} Bxc5 {[%emt 0:01:55]} 11. Bd3 {[%emt 0:05:33]} Qb6 {[%emt 0:03:47]} 12. Qe2 {[%emt 0:07:33]} Bd7 {[%emt 0:04:08]} 13. Ng5 {[%emt 0:04:12]} f5 {[%emt 0:03:35]} 14. Qf3 {[%emt 0:11:00]} Rae8 {[%emt 0:02:50]} 15. Nd2 {[%emt 0:02:16]} h6 {[%emt 0:02:27]} 16. Nh3 {[%emt 0:03:59]} Qc7 {[%emt 0:02:03]} 17. Nf1 {[%emt 0:14:04]} Ne5 {[%emt 0:07:54]} 18. Qd1 {[%emt 0:00:47]} Ng4 {[%emt 0:05:31]} 19. Bc2 {[%emt 0:04:56]} Qb6 {[%emt 0:07:39]} 20. Qf3 {[%emt 0:01:24]} Bc6 {[%emt 0:00:47]} 21. Qg3 {[%emt 0:01:42]} Bb5 {[%emt 0:02:52]} 22. Qf3 {[%emt 0:01:52]} Qd6 {[%emt 0:03:29]} 23. Qg3 {[%emt 0:01:17]} Qd8 {[%emt 0:01:26]} 24. Bf4 {[%emt 0:00:32]} Nxf4 {[%emt 0:01:27]} 25. Qxf4 {[%emt 0:00:16]} Bd6 {[%emt 0:00:28]} 26. Qc1 {[%emt 0:00:52]} Qh4 {[%emt 0:02:53]} 27. Bb3 {[%emt 0:04:14]} Rf6 {[%emt 0:06:48]} 28. Ng3 {[%emt 0:02:13]} Kh8 {[%emt 0:02:39]} 29. Qd2 {[%emt 0:00:14]} Bc5 {[%emt 0:02:27]} 30. Nh1 {[%emt 0:00:41]} Rg6 {[%emt 0:00:25]} 31. Qf4 {[%emt 0:00:39]} Nxf2 {[%emt 0:01:57]} 32. N1xf2 {[%emt 0:00:37]} Qxh3 {[%emt 0:00:18]} 33. g3 {[%emt 0:01:44]} Bc6 {[%emt 0:00:09]} 0-1

[Event "105th British-ch 2018"]
[Site "Hull"]
[Date "2018.08.04"]
[Round "8"]
[White "Payne, Matthew J"]
[Black "Macklin, Paul"]
[Result "1/2-1/2"]
[ECO "B06"]
[WhiteElo "2113"]
[BlackElo "2363"]
[Annotator "NA"]
[PlyCount "50"]
[EventDate "2018.07.28"]
[EventType "swiss"]
[EventCountry "GBR"]
[SourceTitle "playchess.com"]
[Source "ChessBase"]
[SourceQuality "1"]
[TimeControl "40/5400+30:1800+30"]

1. e4 {[%emt 0:00:00]} g6 {[%emt 0:03:01]} 2. d4 {[%emt 0:00:00]} Bg7 {[%emt 0:00:10]} 3. Nf3 {[%emt 0:00:17]} d6 {[%emt 0:00:15]} 4. Bc4 {[%emt 0:00:59]} Nf6 {[%emt 0:04:18]} 5. Qe2 {[%emt 0:01:53]} Nc6 {[%emt 0:00:54]} 6. O-O {[%emt 0:06:29]} Bg4 {[%emt 0:05:05]} 7. c3 {[%emt 0:00:46]} O-O {[%emt 0:01:20]} 8. h3 {[%emt 0:04:40]} Bxf3 {[%emt 0:00:32]} 9. Qxf3 {[%emt 0:00:08]} e5 {[%emt 0:03:12]} 10. Rd1 {[%emt 0:05:17]} Nd7 {[%emt 0:05:38]} 11. Be3 {[%emt 0:04:18]} exd4 {[%emt 0:04:57]} 12. cxd4 {[%emt 0:00:26]} Nb6 {[%emt 0:00:06]} 13. Bb3 {[%emt 0:04:15]} Na5 {[%emt 0:03:00]} 14. Nc3 {[%emt 0:03:05]} Nxb3 {[%emt 0:01:01]} 15. axb3 {[%emt 0:00:08]} a6 {[%emt 0:01:36]} 16. Ra5 {[%emt 0:06:42]} c6 {[%emt 0:04:51]} 17. Rda1 {[%emt 0:04:49]} Qd7 {[%emt 0:02:51]} 18. Qe2 {[%emt 0:10:02]} Rae8 {[%emt 0:01:45]} 19. Qd3 {[%emt 0:04:14]} f5 {[%emt 0:12:46]} 20. exf5 {[%emt 0:09:13]} gxf5 {[%emt 0:05:14]} 21. d5 {[%emt 0:00:12]} c5 {[%emt 0:00:17]} 22. Bf4 {[%emt 0:03:23]} Be5 {[%emt 0:06:41]} 23. Bxe5 {[%emt 0:08:59]} Rxe5 {[%emt 0:00:45]} 24. f4 {[%emt 0:00:12]} Re7 {[%emt 0:01:12]} 25. Rf1 {[%emt 0:00:50]} Rfe8 {[%emt 0:06:37]} 1/2-1/2

[Event "105th British-ch 2018"]
[Site "Hull"]
[Date "2018.08.04"]
[Round "8"]
[White "Krzyzanowski, Patryk"]
[Black "Waddington, Mike P"]
[Result "1-0"]
[ECO "A21"]
[WhiteElo "2087"]
[BlackElo "2110"]
[Annotator "NA"]
[PlyCount "85"]
[EventDate "2018.07.28"]
[EventType "swiss"]
[EventCountry "GBR"]
[SourceTitle "playchess.com"]
[Source "ChessBase"]
[SourceQuality "1"]
[TimeControl "40/5400+30:1800+30"]

1. c4 {[%emt 0:00:00]} f5 {[%emt 0:00:00]} 2. Nc3 {[%emt 0:00:13]} Nf6 {[%emt 0:00:00]} 3. g3 {[%emt 0:00:59]} g6 {[%emt 0:00:00]} 4. Bg2 {[%emt 0:00:11]} Bg7 {[%emt 0:00:10]} 5. d3 {[%emt 0:00:56]} O-O {[%emt 0:00:24]} 6. Nf3 {[%emt 0:00:09]} d6 {[%emt 0:00:11]} 7. O-O {[%emt 0:00:11]} e5 {[%emt 0:00:06]} 8. Bg5 {[%emt 0:00:19]} h6 {[%emt 0:00:47]} 9. Bxf6 {[%emt 0:00:05]} Qxf6 {[%emt 0:00:48]} 10. Nd5 {[%emt 0:02:23]} Qf7 {[%emt 0:01:23]} 11. Nd2 {[%emt 0:00:35]} c6 {[%emt 0:00:54]} 12. Nc3 {[%emt 0:00:13]} Na6 {[%emt 0:03:18]} 13. Rb1 {[%emt 0:00:40]} Nc7 {[%emt 0:01:46]} 14. b4 {[%emt 0:01:41]} e4 {[%emt 0:04:46]} 15. Qc2 {[%emt 0:01:02]} d5 {[%emt 0:03:48]} 16. b5 {[%emt 0:13:54]} Ne6 {[%emt 0:05:32]} 17. bxc6 {[%emt 0:02:21]} bxc6 {[%emt 0:01:54]} 18. cxd5 {[%emt 0:16:32]} Nd4 {[%emt 0:01:49]} 19. Qa4 {[%emt 0:01:11]} cxd5 {[%emt 0:01:07]} 20. e3 {[%emt 0:14:47]} Bd7 {[%emt 0:10:28]} 21. Qa5 {[%emt 0:18:06]} Nc6 {[%emt 0:12:26]} 22. Qc5 {[%emt 0:00:45]} Rfc8 {[%emt 0:09:36]} 23. Nxd5 {[%emt 0:09:21]} Bf8 {[%emt 0:02:14]} 24. Qc4 {[%emt 0:00:15]} Be6 {[%emt 0:01:40]} 25. dxe4 {[%emt 0:00:15]} Ne5 {[%emt 0:03:56]} 26. Qd4 {[%emt 0:03:00]} Bg7 {[%emt 0:00:50]} 27. exf5 {[%emt 0:00:29]} gxf5 {[%emt 0:01:39]} 28. Nf4 {[%emt 0:02:27]} Nf3+ {[%emt 0:05:42]} 29. Nxf3 {[%emt 0:00:28]} Bxd4 {[%emt 0:00:07]} 30. Nxd4 {[%emt 0:00:06]} Bxa2 {[%emt 0:01:21]} 31. Rb2 {[%emt 0:02:05]} Kh8 {[%emt 0:05:25]} 32. Nxf5 {[%emt 0:01:50]} Rab8 {[%emt 0:07:54]} 33. Nxh6 {[%emt 0:01:29]} Qf6 {[%emt 0:00:27]} 34. Rxa2 {[%emt 0:00:25]} Qxh6 {[%emt 0:00:11]} 35. Rxa7 {[%emt 0:00:09]} Rb4 {[%emt 0:01:58]} 36. Bh3 {[%emt 0:01:14]} Rcb8 {[%emt 0:00:29]} 37. Bf5 {[%emt 0:00:11]} Kg8 {[%emt 0:04:30]} 38. Rc1 {[%emt 0:03:39]} R4b7 {[%emt 0:01:17]} 39. Rc7 {[%emt 0:02:01]} Rxc7 {[%emt 0:02:05]} 40. Rxc7 {[%emt 0:00:10]} Qd6 {[%emt 0:00:20]} 41. Be6+ {[%emt 0:12:19]} Kf8 {[%emt 0:01:14]} 42. Ng6+ {[%emt 0:00:27]} Ke8 {[%emt 0:00:08]} 43. Re7+ {[%emt 0:00:12]} 1-0

[Event "105th British-ch 2018"]
[Site "Hull"]
[Date "2018.08.04"]
[Round "8"]
[White "Verma, Aditya"]
[Black "Jarmany, John"]
[Result "1/2-1/2"]
[ECO "B12"]
[WhiteElo "2084"]
[BlackElo "2110"]
[Annotator "NA"]
[PlyCount "44"]
[EventDate "2018.07.28"]
[EventType "swiss"]
[EventCountry "GBR"]
[SourceTitle "playchess.com"]
[Source "ChessBase"]
[SourceQuality "1"]
[TimeControl "40/5400+30:1800+30"]

1. e4 {[%emt 0:00:00]} c6 {[%emt 0:00:00]} 2. d4 {[%emt 0:00:00]} d5 {[%emt 0:00:00]} 3. e5 {[%emt 0:00:00]} c5 {[%emt 0:00:00]} 4. c3 {[%emt 0:00:13]} Nc6 {[%emt 0:00:31]} 5. Nf3 {[%emt 0:05:20]} Bg4 {[%emt 0:02:54]} 6. Be2 {[%emt 0:01:27]} e6 {[%emt 0:00:19]} 7. Nbd2 {[%emt 0:12:59]} cxd4 {[%emt 0:02:22]} 8. cxd4 {[%emt 0:02:31]} Bb4 {[%emt 0:04:20]} 9. O-O {[%emt 0:00:35]} Nge7 {[%emt 0:01:00]} 10. Nb3 {[%emt 0:03:55]} Nf5 {[%emt 0:06:34]} 11. h3 {[%emt 0:07:24]} Bxf3 {[%emt 0:00:10]} 12. Bxf3 {[%emt 0:00:10]} Qb6 {[%emt 0:10:47]} 13. Be3 {[%emt 0:01:14]} a5 {[%emt 0:00:21]} 14. a4 {[%emt 0:08:43]} O-O {[%emt 0:04:31]} 15. Qd3 {[%emt 0:03:31]} Rac8 {[%emt 0:17:32]} 16. Rfc1 {[%emt 0:04:01]} Be7 {[%emt 0:04:52]} 17. Rc3 {[%emt 0:16:17]} Nb4 {[%emt 0:09:35]} 18. Qd2 {[%emt 0:02:16]} Nc6 {[%emt 0:02:41]} 19. Qd3 {[%emt 0:00:08]} Nb4 {[%emt 0:01:41]} 20. Qd2 {[%emt 0:00:05]} Nc6 {[%emt 0:01:02]} 21. Qd3 {[%emt 0:00:06]} Nb4 {[%emt 0:00:47]} 22. Qd2 {[%emt 0:00:07]} Nc6 {[%emt 0:00:03]} 1/2-1/2

[Event "105th British-ch 2018"]
[Site "Hull"]
[Date "2018.08.04"]
[Round "8"]
[White "Ratnesan, Ranesh"]
[Black "Price, Gwilym T"]
[Result "1/2-1/2"]
[ECO "E67"]
[WhiteElo "2073"]
[BlackElo "2085"]
[Annotator "NA"]
[PlyCount "47"]
[EventDate "2018.07.28"]
[EventType "swiss"]
[EventCountry "GBR"]
[SourceTitle "playchess.com"]
[Source "ChessBase"]
[SourceQuality "1"]
[TimeControl "40/5400+30:1800+30"]

1. d4 {[%emt 0:00:00]} Nf6 {[%emt 0:00:00]} 2. c4 {[%emt 0:00:12]} g6 {[%emt 0:00:00]} 3. Nf3 {[%emt 0:00:07]} Bg7 {[%emt 0:00:00]} 4. Nc3 {[%emt 0:00:37]} O-O {[%emt 0:00:00]} 5. g3 {[%emt 0:00:09]} d6 {[%emt 0:00:02]} 6. Bg2 {[%emt 0:00:13]} Nbd7 {[%emt 0:00:05]} 7. O-O {[%emt 0:01:19]} e5 {[%emt 0:00:02]} 8. dxe5 {[%emt 0:03:56]} dxe5 {[%emt 0:00:26]} 9. Bg5 {[%emt 0:01:01]} h6 {[%emt 0:03:20]} 10. Bxf6 {[%emt 0:02:25]} Qxf6 {[%emt 0:01:23]} 11. Nd2 {[%emt 0:02:14]} c6 {[%emt 0:03:43]} 12. b4 {[%emt 0:09:47]} Rd8 {[%emt 0:08:00]} 13. Qc2 {[%emt 0:04:39]} Nf8 {[%emt 0:09:10]} 14. Rac1 {[%emt 0:11:32]} Qd6 {[%emt 0:07:35]} 15. Nce4 {[%emt 0:12:35]} Qxb4 {[%emt 0:01:25]} 16. c5 {[%emt 0:04:56]} Qa5 {[%emt 0:03:14]} 17. Nc4 {[%emt 0:03:10]} Qc7 {[%emt 0:00:41]} 18. Ncd6 {[%emt 0:04:00]} Be6 {[%emt 0:06:11]} 19. Rb1 {[%emt 0:02:34]} b5 {[%emt 0:02:27]} 20. cxb6 {[%emt 0:01:03]} axb6 {[%emt 0:01:16]} 21. Nb5 {[%emt 0:00:58]} Qe7 {[%emt 0:07:02]} 22. Qxc6 {[%emt 0:01:18]} Rxa2 {[%emt 0:01:28]} 23. Nec3 {[%emt 0:02:38]} Rad2 {[%emt 0:02:41]} 24. Qxb6 {[%emt 0:03:40]} 1/2-1/2

[Event "105th British-ch 2018"]
[Site "Hull"]
[Date "2018.08.04"]
[Round "8"]
[White "McDougall, William M"]
[Black "Bradbury, Neil H"]
[Result "0-1"]
[ECO "E15"]
[WhiteElo "2056"]
[BlackElo "2350"]
[Annotator "NA"]
[PlyCount "106"]
[EventDate "2018.07.28"]
[EventType "swiss"]
[EventCountry "GBR"]
[SourceTitle "playchess.com"]
[Source "ChessBase"]
[SourceQuality "1"]
[TimeControl "40/5400+30:1800+30"]

1. d4 {[%emt 0:00:00]} Nf6 {[%emt 0:00:00]} 2. c4 {[%emt 0:00:00]} e6 {[%emt 0:00:00]} 3. Nf3 {[%emt 0:00:06]} b6 {[%emt 0:00:08]} 4. g3 {[%emt 0:00:22]} Ba6 {[%emt 0:01:58]} 5. Qc2 {[%emt 0:02:21]} Bb4+ {[%emt 0:04:18]} 6. Bd2 {[%emt 0:01:21]} Be7 {[%emt 0:00:07]} 7. Bg2 {[%emt 0:01:30]} d5 {[%emt 0:01:45]} 8. Ne5 {[%emt 0:03:40]} O-O {[%emt 0:05:44]} 9. O-O {[%emt 0:03:54]} c5 {[%emt 0:08:58]} 10. dxc5 {[%emt 0:06:05]} bxc5 {[%emt 0:06:56]} 11. cxd5 {[%emt 0:02:19]} Nxd5 {[%emt 0:13:55]} 12. Nc3 {[%emt 0:07:14]} Bf6 {[%emt 0:20:47]} 13. Ng4 {[%emt 0:23:56]} Bxc3 {[%emt 0:05:01]} 14. Bxc3 {[%emt 0:02:42]} Nc6 {[%emt 0:00:07]} 15. Rfd1 {[%emt 0:03:58]} Qg5 {[%emt 0:03:21]} 16. h3 {[%emt 0:01:37]} Rac8 {[%emt 0:00:37]} 17. e3 {[%emt 0:09:35]} Rfd8 {[%emt 0:07:21]} 18. a3 {[%emt 0:02:16]} h5 {[%emt 0:05:19]} 19. Nh2 {[%emt 0:07:06]} Bb7 {[%emt 0:00:21]} 20. Nf3 {[%emt 0:01:26]} Qh6 {[%emt 0:01:42]} 21. Rac1 {[%emt 0:01:34]} Ba8 {[%emt 0:00:08]} 22. Ne5 {[%emt 0:02:09]} Nxe5 {[%emt 0:00:23]} 23. Bxe5 Nxe3 24. Rxd8+ {[%emt 0:04:16]} Rxd8 {[%emt 0:00:21]} 25. Bf4 {[%emt 0:02:02]} Nxc2 {[%emt 0:02:28]} 26. Bxh6 {[%emt 0:01:25]} Nd4 27. Rxc5 {[%emt 0:03:50]} gxh6 {[%emt 0:02:49]} 28. Bxa8 {[%emt 0:00:00]} Rxa8 {[%emt 0:00:01]} 29. Rxh5 {[%emt 0:00:00]} Kg7 {[%emt 0:00:26]} 30. Ra5 {[%emt 0:01:02]} Nc6 {[%emt 0:00:51]} 31. Ra6 {[%emt 0:00:41]} Rc8 32. b4 {[%emt 0:00:00]} Rc7 {[%emt 0:01:50]} 33. b5 {[%emt 0:00:00]} Nb8 {[%emt 0:00:24]} 34. Ra4 {[%emt 0:01:28]} Nd7 {[%emt 0:01:59]} 35. Rb4 {[%emt 0:00:00]} Nb6 {[%emt 0:02:15]} 36. Kf1 {[%emt 0:00:24]} Rc3 {[%emt 0:00:49]} 37. Rg4+ {[%emt 0:02:14]} Kf8 {[%emt 0:01:18]} 38. Rh4 {[%emt 0:00:00]} Kg7 {[%emt 0:00:32]} 39. Rg4+ {[%emt 0:00:00]} Kh7 {[%emt 0:00:12]} 40. Rf4 {[%emt 0:00:00]} Kg8 {[%emt 0:00:30]} 41. Rg4+ {[%emt 0:02:29]} Kf8 {[%emt 0:33:02]} 42. Rh4 {[%emt 0:01:42]} Rxa3 {[%emt 0:00:00]} 43. Rxh6 {[%emt 0:00:00]} Kg7 {[%emt 0:00:00]} 44. Rh5 {[%emt 0:00:00]} Ra5 {[%emt 0:00:00]} 45. Rg5+ {[%emt 0:00:00]} Kh6 {[%emt 0:00:00]} 46. h4 {[%emt 0:00:00]} Nd5 {[%emt 0:00:00]} 47. Rg8 {[%emt 0:01:37]} Rxb5 {[%emt 0:00:00]} 48. Kg2 {[%emt 0:00:06]} Nb6 {[%emt 0:00:00]} 49. g4 {[%emt 0:00:52]} a5 {[%emt 0:00:00]} 50. g5+ {[%emt 0:01:32]} Kh7 {[%emt 0:00:00]} 51. Rf8 {[%emt 0:01:03]} Kg7 {[%emt 0:00:00]} 52. Rd8 {[%emt 0:00:12]} a4 {[%emt 0:00:00]} 53. f4 {[%emt 0:04:44]} a3 {[%emt 0:00:00]} 0-1

[Event "105th British-ch 2018"]
[Site "Hull"]
[Date "2018.08.04"]
[Round "8"]
[White "Jamroz, Krzysztof"]
[Black "Mcmichael, Richard J"]
[Result "0-1"]
[ECO "C04"]
[WhiteElo "2026"]
[BlackElo "2245"]
[Annotator "NA"]
[PlyCount "68"]
[EventDate "2018.07.28"]
[EventType "swiss"]
[EventCountry "GBR"]
[SourceTitle "playchess.com"]
[Source "ChessBase"]
[SourceQuality "1"]
[TimeControl "40/5400+30:1800+30"]

1. e4 {[%emt 0:00:00]} e6 {[%emt 0:00:27]} 2. d4 {[%emt 0:00:00]} d5 {[%emt 0:00:06]} 3. Nd2 {[%emt 0:00:00]} Nc6 {[%emt 0:00:25]} 4. Ngf3 {[%emt 0:00:00]} Nf6 {[%emt 0:00:04]} 5. e5 {[%emt 0:00:00]} Nd7 {[%emt 0:00:05]} 6. c3 {[%emt 0:00:00]} f6 {[%emt 0:00:15]} 7. Bb5 {[%emt 0:00:02]} Be7 {[%emt 0:00:45]} 8. exf6 {[%emt 0:06:39]} Bxf6 {[%emt 0:01:46]} 9. O-O {[%emt 0:00:40]} O-O {[%emt 0:00:28]} 10. Re1 {[%emt 0:00:28]} Re8 {[%emt 0:02:48]} 11. Nb3 {[%emt 0:05:11]} a5 {[%emt 0:03:45]} 12. Bf4 {[%emt 0:01:58]} Na7 {[%emt 0:04:43]} 13. Bd3 {[%emt 0:01:30]} b6 {[%emt 0:00:28]} 14. Qc2 {[%emt 0:07:51]} Nf8 {[%emt 0:01:07]} 15. a4 {[%emt 0:11:27]} Bd7 {[%emt 0:01:53]} 16. h4 {[%emt 0:17:41]} Re7 {[%emt 0:05:07]} 17. g4 {[%emt 0:11:38]} Rf7 {[%emt 0:02:03]} 18. Bg3 {[%emt 0:04:59]} g6 {[%emt 0:04:08]} 19. g5 {[%emt 0:01:48]} Bg7 {[%emt 0:00:08]} 20. Ne5 {[%emt 0:01:18]} Bxe5 {[%emt 0:00:49]} 21. Bxe5 {[%emt 0:00:08]} Nc6 {[%emt 0:00:37]} 22. Bg3 {[%emt 0:00:57]} Ne7 {[%emt 0:01:55]} 23. Qe2 {[%emt 0:03:54]} Nf5 {[%emt 0:08:10]} 24. Kg2 {[%emt 0:01:28]} Ra7 {[%emt 0:06:49]} 25. Nd2 {[%emt 0:00:31]} c5 {[%emt 0:02:04]} 26. Nf3 {[%emt 0:00:36]} Bc8 {[%emt 0:04:11]} 27. Ne5 {[%emt 0:01:10]} cxd4 {[%emt 0:01:01]} 28. Nc6 {[%emt 0:02:12]} Qd7 {[%emt 0:00:50]} 29. Nxa7 {[%emt 0:01:17]} Qxa7 {[%emt 0:00:14]} 30. Bxf5 {[%emt 0:00:41]} gxf5 {[%emt 0:02:09]} 31. cxd4 {[%emt 0:00:23]} f4 {[%emt 0:00:11]} 32. Qc2 {[%emt 0:03:33]} fxg3 {[%emt 0:04:30]} 33. Qxc8 {[%emt 0:02:04]} Rxf2+ {[%emt 0:00:32]} 34. Kxg3 {[%emt 0:00:17]} Qf7 {[%emt 0:00:06]} 0-1